lending/lending_fUSD_20240809
["ID","MTS","AMOUNT","RATE_DAILY","PERIOD"]
[334525908,1723173106590,-713.13,0.00024482,5]
[334525909,1723173106600,-713.13,0.00024482,5]
[334525910,1723173106609,-713.13,0.00024482,5]
[334525911,1723173106619,-713.13,0.00024482,5]
[334525912,1723173106628,-713.16276671,0.00024482,5]
[334525913,1723173106637,-707.7,0.00024482,5]
[334525914,1723173106646,-707.7,0.00024482,5]
[334525915,1723173106655,-707.7,0.00024482,5]
[334525916,1723173106664,-707.7,0.00024482,5]
[334525917,1723173106674,-707.84055717,0.00024482,5]
[334525918,1723173106683,-511.96,0.00024482,5]
[334525919,1723173106692,-511.96,0.00024482,5]
[334525920,1723173106702,-511.96,0.00024482,5]
[334525921,1723173106711,-511.96,0.00024482,5]
[334525922,1723173106721,-512.09505647,0.00024482,5]
[334525923,1723173106730,-1195.6,0.00024482,5]
[334525924,1723173106740,-1195.6,0.00024482,5]
[334525925,1723173106749,-1195.6,0.00024482,5]
[334525926,1723173106759,-1195.6,0.00024482,5]
[334525927,1723173106769,-1195.83,0.00024482,5]
[334525928,1723173106779,-730.2,0.00024482,5]
[334525929,1723173106789,-730.2,0.00024482,5]
[334525930,1723173106798,-730.2,0.00024482,5]
[334525931,1723173106808,-730.2,0.00024482,5]
[334525932,1723173106818,-730.42218923,0.00024482,5]
[334525933,1723173106827,-833.58,0.00024483,5]
[334525934,1723173106837,-838.22,0.00024483,5]
[334525935,1723173106846,-151.0,0.00024483,7]
[334525936,1723173106856,-150.0,0.00024483,2]
[334525937,1723173106865,-1285.69,0.00024483,5]
[334525938,1723173106875,-500.0,0.00024483,5]
[334525939,1723173106884,-734.02,0.00024483,5]
[334525940,1723173106894,-1576.72,0.00024483,5]
[334525941,1723173106903,-2848.78,0.00024483,5]
[334525942,1723173106912,-1017.24,0.00024483,5]
[334525943,1723173106922,-837.62,0.00024483,5]
[334525944,1723173106932,-1900.76,0.00024483,5]
[334525945,1723173106941,-500.0,0.00024483,5]
[334525946,1723173106950,-2017.79,0.00024483,5]
[334525947,1723173106960,-619.35,0.00024483,5]
[334525948,1723173106970,-1257.11,0.00024483,5]
[334525949,1723173106979,-500.0,0.00024483,5]
[334525950,1723173106988,-2561.56,0.00024483,2]
[334525951,1723173106998,-738.8,0.00024483,5]
[334525952,1723173107008,-5908.06,0.00024483,5]
[334525953,1723173107138,-2016.95,0.00024483,5]
[334525954,1723173107150,-553.49,0.00024483,5]
[334525955,1723173107160,-500.0,0.00024483,5]
[334525956,1723173107170,-2539.06,0.00024483,5]
[334525957,1723173107182,-1747.68,0.00024483,5]
[334525958,1723173107193,-1029.94,0.00024483,5]
[334525959,1723173107203,-959.94,0.00024483,5]
[334525960,1723173107214,-3315.04,0.00024483,5]
[334525961,1723173107224,-500.0,0.00024483,5]
[334525962,1723173107235,-2760.09,0.00024483,5]
[334525963,1723173107245,-870.98,0.00024483,5]
[334525964,1723173107257,-796.36,0.00024483,5]
[334525965,1723173107268,-2598.71,0.00024483,5]
[334525966,1723173107279,-4419.52,0.00024483,5]
[334525967,1723173107289,-500.0,0.00024483,5]
[334525968,1723173107300,-504.04,0.00024483,5]
[334525969,1723173107310,-1623.9,0.00024483,5]
[334525970,1723173107319,-500.0,0.00024483,5]
[334525971,1723173107328,-500.0,0.00024483,5]
[334525972,1723173107338,-1742.45,0.00024483,5]
[334525973,1723173107348,-754.59,0.00024483,5]
[334525974,1723173107357,-1500.41,0.00024483,5]
[334525975,1723173107366,-577.95,0.00024483,5]
[334525976,1723173107375,-7078.41,0.00024483,5]
[334525977,1723173107384,-756.55,0.00024483,5]
[334525978,1723173107393,-12292.82,0.00024483,5]
[334525979,1723173107402,-500.0,0.00024483,5]
[334525980,1723173107412,-500.0,0.00024483,5]
[334525981,1723173107420,-500.0,0.00024483,5]
[334525982,1723173107430,-867.19,0.00024483,5]
[334525983,1723173107439,-912.55,0.00024483,5]
[334525984,1723173107449,-548.86,0.00024483,5]
[334525985,1723173107458,-3027.54,0.00024483,5]
[334525986,1723173107468,-1115.98,0.00024483,5]
[334525987,1723173107477,-1093.44,0.00024483,5]
[334525988,1723173107488,-665.69,0.00024483,5]
[334525989,1723173107497,-500.0,0.00024483,5]
[334525990,1723173107506,-2725.36,0.00024483,5]
[334525991,1723173107515,-539.13,0.00024483,5]
[334525992,1723173107524,-2207.94,0.00024483,5]
[334525993,1723173107533,-2483.96,0.00024483,5]
[334525994,1723173107542,-3472.19,0.00024483,5]
[334525995,1723173107553,-1834.93,0.00024483,5]
[334525996,1723173107562,-2639.38,0.00024483,5]
[334525997,1723173107572,-500.0,0.00024484,5]
[334525998,1723173107581,-2642.87,0.00024484,5]
[334525999,1723173107590,-530.96,0.00024484,5]
[334526000,1723173107600,-500.0,0.00024484,5]
[334526001,1723173107609,-2144.25,0.00024484,5]
[334526002,1723173107618,-500.0,0.00024486,5]
[334526003,1723173107627,-2642.87,0.00024486,5]
[334526004,1723173107636,-530.96,0.00024486,5]
[334526005,1723173107646,-500.0,0.00024486,5]
[334526006,1723173107655,-2144.25,0.00024486,5]
[334526007,1723173107664,-150.0,0.00024489,2]
[334526008,1723173107674,-833.58,0.00024492,5]
[334526009,1723173107684,-833.58,0.00024492,5]
[334526010,1723173107693,-838.22,0.00024492,5]
[334526011,1723173107702,-838.22,0.00024492,5]
[334526012,1723173107712,-1285.69,0.00024492,5]
[334526013,1723173107721,-1285.69,0.00024492,5]
[334526014,1723173107731,-644.11301995,0.00024492,5]
[334526015,1723173107740,-734.02,0.00024492,5]
[334526016,1723173107750,-734.02,0.00024492,5]
[334526017,1723173107760,-1576.72,0.00024492,5]
[334526018,1723173107770,-1576.72,0.00024492,5]
[334526019,1723173107779,-2848.78,0.00024492,5]
[334526020,1723173107788,-2848.78,0.00024492,5]
[334526021,1723173107797,-1017.24,0.00024492,5]
[334526022,1723173107807,-1017.24,0.00024492,5]
[334526023,1723173107816,-837.62,0.00024492,5]
[334526024,1723173107825,-837.62,0.00024492,5]
[334526025,1723173107834,-1900.76,0.00024492,5]
[334526026,1723173107844,-1900.76,0.00024492,5]
[334526027,1723173107853,-500.0,0.00024492,5]
[334526028,1723173107863,-500.0,0.00024492,5]
[334526029,1723173107872,-2017.79,0.00024492,5]
[334526030,1723173107881,-2017.79,0.00024492,5]
[334526031,1723173107890,-619.35,0.00024492,5]
[334526032,1723173107899,-619.35,0.00024492,5]
[334526033,1723173107909,-1257.11,0.00024492,5]
[334526034,1723173107919,-1257.11,0.00024492,5]
[334526035,1723173107927,-500.0,0.00024492,5]
[334526036,1723173107937,-500.0,0.00024492,5]
[334526037,1723173107946,-2561.56,0.00024492,2]
[334526038,1723173107956,-2561.56,0.00024492,2]
[334526039,1723173107966,-738.8,0.00024492,5]
[334526040,1723173107975,-738.8,0.00024492,5]
[334526041,1723173107985,-5908.06,0.00024492,5]
[334526042,1723173107995,-5908.06,0.00024492,5]
[334526043,1723173108005,-2016.95,0.00024492,5]
[334526044,1723173108015,-2016.95,0.00024492,5]
[334526045,1723173108025,-553.49,0.00024492,5]
[334526046,1723173108035,-553.49,0.00024492,5]
[334526047,1723173108044,-500.0,0.00024492,5]
[334526048,1723173108054,-500.0,0.00024492,5]
[334526049,1723173108063,-2539.06,0.00024492,5]
[334526050,1723173108072,-2539.06,0.00024492,5]
[334526051,1723173108082,-1747.68,0.00024492,5]
[334526052,1723173108091,-1747.68,0.00024492,5]
[334526053,1723173108101,-1029.94,0.00024492,5]
[334526054,1723173108111,-1029.94,0.00024492,5]
[334526055,1723173108121,-959.94,0.00024492,5]
[334526056,1723173108132,-959.94,0.00024492,5]
[334526057,1723173108143,-3315.04,0.00024492,5]
[334526058,1723173108153,-3315.04,0.00024492,5]
[334526059,1723173108162,-500.0,0.00024492,5]
[334526060,1723173108172,-500.0,0.00024492,5]
[334526061,1723173108182,-2760.09,0.00024492,5]
[334526062,1723173108192,-870.98,0.00024492,5]
[334526063,1723173108202,-2760.09,0.00024492,5]
[334526064,1723173108213,-870.98,0.00024492,5]
[334526065,1723173108223,-796.36,0.00024492,5]
[334526066,1723173108232,-796.36,0.00024492,5]
[334526067,1723173108242,-2598.71,0.00024492,5]
[334526068,1723173108252,-2598.71,0.00024492,5]
[334526069,1723173108261,-4419.52,0.00024492,5]
[334526070,1723173108271,-4419.52,0.00024492,5]
[334526071,1723173108281,-500.0,0.00024492,5]
[334526072,1723173108290,-500.0,0.00024492,5]
[334526073,1723173108300,-504.04,0.00024492,5]
[334526074,1723173108309,-504.04,0.00024492,5]
[334526075,1723173108318,-1623.9,0.00024492,5]
[334526076,1723173108328,-1623.9,0.00024492,5]
[334526077,1723173108338,-269.9250169,0.00024492,5]
[334526078,1723173108348,-500.0,0.00024492,5]
[334526079,1723173108357,-500.0,0.00024492,5]
[334526080,1723173108366,-1742.45,0.00024492,5]
[334526081,1723173108376,-1742.45,0.00024492,5]
[334526082,1723173108386,-754.59,0.00024492,5]
[334526083,1723173108396,-754.59,0.00024492,5]
[334526084,1723173108405,-1500.41,0.00024492,5]
[334526085,1723173108415,-1500.41,0.00024492,5]
[334526086,1723173108424,-577.95,0.00024492,5]
[334526087,1723173108434,-7078.41,0.00024492,5]
[334526088,1723173108443,-577.95,0.00024492,5]
[334526089,1723173108453,-7078.41,0.00024492,5]
[334526090,1723173108462,-756.55,0.00024492,5]
[334526091,1723173108472,-756.55,0.00024492,5]
[334526092,1723173108482,-12292.82,0.00024492,5]
[334526093,1723173108491,-12292.82,0.00024492,5]
[334526094,1723173108501,-500.0,0.00024492,5]
[334526095,1723173108511,-500.0,0.00024492,5]
[334526096,1723173108521,-500.0,0.00024492,5]
[334526097,1723173108530,-500.0,0.00024492,5]
[334526098,1723173108540,-500.0,0.00024492,5]
[334526099,1723173108549,-500.0,0.00024492,5]
[334526100,1723173108559,-867.19,0.00024492,5]
[334526101,1723173108568,-912.55,0.00024492,5]
[334526102,1723173108577,-548.86,0.00024492,5]
[334526103,1723173108587,-867.19,0.00024492,5]
[334526104,1723173108597,-912.55,0.00024492,5]
[334526105,1723173108607,-548.86,0.00024492,5]
[334526106,1723173108616,-3027.54,0.00024492,5]
[334526107,1723173108626,-3027.54,0.00024492,5]
[334526108,1723173108636,-1115.98,0.00024492,5]
[334526109,1723173108646,-1115.98,0.00024492,5]
[334526110,1723173108656,-1093.44,0.00024492,5]
[334526111,1723173108666,-1093.44,0.00024492,5]
[334526112,1723173108677,-665.69,0.00024492,5]
[334526113,1723173108686,-665.69,0.00024492,5]
[334526114,1723173108696,-500.0,0.00024492,5]
[334526115,1723173108705,-595.41439007,0.00024492,5]
[334526116,1723173108715,-2725.36,0.00024492,5]
[334526117,1723173108725,-2725.36,0.00024492,5]
[334526118,1723173108735,-539.13,0.00024492,5]
[334526119,1723173108745,-539.13,0.00024492,5]
[334526120,1723173108755,-2207.94,0.00024492,5]
[334526121,1723173108765,-2207.94,0.00024492,5]
[334526122,1723173108774,-2483.96,0.00024492,5]
[334526123,1723173108784,-2483.96,0.00024492,5]
[334526124,1723173108793,-3472.19,0.00024492,5]
[334526125,1723173108803,-3472.19,0.00024492,5]
[334526126,1723173108812,-1834.93,0.00024492,5]
[334526127,1723173108822,-2639.38,0.00024492,5]
[334526128,1723173108832,-1834.93,0.00024492,5]
[334526129,1723173108842,-2639.38,0.00024492,5]
[334526130,1723173108851,-300.0,0.00024493,2]
[334526131,1723173108860,-872.43,0.00024493,2]
[334526132,1723173108869,-535.65,0.00024493,2]
[334526133,1723173108879,-426.2,0.00024493,2]
[334526134,1723173108889,-426.2,0.00024493,2]
[334526135,1723173108898,-426.2,0.00024493,2]
[334526136,1723173108908,-426.2,0.00024493,2]
[334526137,1723173108917,-426.2,0.00024493,2]
[334526138,1723173108927,-426.2,0.00024493,2]
[334526139,1723173108936,-426.2,0.00024493,2]
[334526140,1723173108945,-426.2,0.00024493,2]
[334526141,1723173108955,-426.2,0.00024493,2]
[334526142,1723173108964,-426.2,0.00024493,2]
[334526143,1723173108973,-426.2,0.00024493,2]
[334526144,1723173108982,-426.2,0.00024493,2]
[334526145,1723173108991,-426.2,0.00024493,2]
[334526146,1723173109001,-426.2,0.00024493,2]
[334526147,1723173109010,-1624.53,0.00024493,2]
[334526148,1723173109020,-247.58511359,0.00024494,5]
[334526149,1723173109029,-500.0,0.00024494,5]
[334526150,1723173109039,-500.0,0.00024494,5]
[334526151,1723173109048,-500.0,0.00024494,5]
[334526152,1723173109057,-2642.87,0.00024494,5]
[334526153,1723173109066,-2642.87,0.00024494,5]
[334526154,1723173109196,-2642.87,0.00024494,5]
[334526155,1723173109207,-5425.2101591,0.00024494,2]
[334526156,1723173109217,-22089.70830583,0.00024494,2]
[334526157,1723173109227,-340.88784998,0.00024494,7]
[334526158,1723173109236,-2565.44938053,0.00024494,2]
[334526159,1723173109245,-572.93207921,0.00024494,2]
[334526160,1723173109254,-530.96,0.00024494,5]
[334526161,1723173109263,-530.96,0.00024494,5]
[334526162,1723173109273,-530.96,0.00024494,5]
[334526163,1723173109282,-216.98912761,0.00024494,5]
[334526164,1723173109291,-2000.0,0.00024494,2]
[334526165,1723173109300,-200.0,0.00024494,2]
[334526166,1723173109309,-2144.25,0.00024494,5]
[334526167,1723173109318,-2144.25,0.00024494,5]
[334526168,1723173109327,-2144.25,0.00024494,5]
[334526169,1723173109336,-1158.43634607,0.00024494,2]
[334526170,1723173109346,-1223.55498284,0.00024494,2]
[334526171,1723173109356,-871.61874262,0.00024494,2]
[334526172,1723173109365,-11213.24867556,0.00024494,2]
[334526173,1723173109374,-1290.22773585,0.00024494,2]
[334526174,1723173109384,-200.0,0.00024494,2]
[334526175,1723173109393,-833.58,0.00024494,5]
[334526176,1723173109403,-833.58,0.00024494,5]
[334526177,1723173109412,-833.58,0.00024494,5]
[334526178,1723173109422,-838.22,0.00024494,5]
[334526179,1723173109431,-838.22,0.00024494,5]
[334526180,1723173109440,-838.22,0.00024494,5]
[334526181,1723173109449,-1285.69,0.00024494,5]
[334526182,1723173109460,-1285.69,0.00024494,5]
[334526183,1723173109469,-1285.69,0.00024494,5]
[334526184,1723173109479,-734.02,0.00024494,5]
[334526185,1723173109488,-734.02,0.00024494,5]
[334526186,1723173109498,-734.02,0.00024494,5]
[334526187,1723173109507,-1576.72,0.00024494,5]
[334526188,1723173109516,-1576.72,0.00024494,5]
[334526189,1723173109526,-1576.72,0.00024494,5]
[334526190,1723173109535,-2848.78,0.00024494,5]
[334526191,1723173109546,-2848.78,0.00024494,5]
[334526192,1723173109556,-2848.78,0.00024494,5]
[334526193,1723173109566,-1017.24,0.00024494,5]
[334526194,1723173109575,-1017.24,0.00024494,5]
[334526195,1723173109585,-1017.24,0.00024494,5]
[334526196,1723173109594,-837.62,0.00024494,5]
[334526197,1723173109604,-837.62,0.00024494,5]
[334526198,1723173109616,-837.62,0.00024494,5]
[334526199,1723173109627,-1900.76,0.00024494,5]
[334526200,1723173109637,-1900.76,0.00024494,5]
[334526201,1723173109647,-1900.76,0.00024494,5]
[334526202,1723173109657,-500.0,0.00024494,5]
[334526203,1723173109667,-500.0,0.00024494,5]
[334526204,1723173109677,-500.0,0.00024494,5]
[334526205,1723173109687,-2017.79,0.00024494,5]
[334526206,1723173109697,-2017.79,0.00024494,5]
[334526207,1723173109709,-2017.79,0.00024494,5]
[334526208,1723173109719,-2000.0,0.00024494,2]
[334526209,1723173109729,-200.0,0.00024494,2]
[334526210,1723173109739,-619.35,0.00024494,5]
[334526211,1723173109749,-619.35,0.00024494,5]
[334526212,1723173109758,-619.35,0.00024494,5]
[334526213,1723173109769,-1257.11,0.00024494,5]
[334526214,1723173109779,-1257.11,0.00024494,5]
[334526215,1723173109789,-1257.11,0.00024494,5]
[334526216,1723173109798,-500.0,0.00024494,5]
[334526217,1723173109808,-500.0,0.00024494,5]
[334526218,1723173109817,-500.0,0.00024494,5]
[334526219,1723173109828,-2561.56,0.00024494,2]
[334526220,1723173109837,-2561.56,0.00024494,2]
[334526221,1723173109847,-2561.56,0.00024494,2]
[334526222,1723173109857,-738.8,0.00024494,5]
[334526223,1723173109867,-738.8,0.00024494,5]
[334526224,1723173109876,-738.8,0.00024494,5]
[334526225,1723173109886,-5908.06,0.00024494,5]
[334526226,1723173109896,-5908.06,0.00024494,5]
[334526227,1723173109906,-5908.06,0.00024494,5]
[334526228,1723173109916,-2016.95,0.00024494,5]
[334526229,1723173109926,-2016.95,0.00024494,5]
[334526230,1723173109937,-2016.95,0.00024494,5]
[334526231,1723173109947,-3000.0,0.00024494,2]
[334526232,1723173109958,-553.49,0.00024494,5]
[334526233,1723173109968,-553.49,0.00024494,5]
[334526234,1723173109978,-553.49,0.00024494,5]
[334526235,1723173109988,-500.0,0.00024494,5]
[334526236,1723173109998,-500.0,0.00024494,5]
[334526237,1723173110008,-500.0,0.00024494,5]
[334526238,1723173110017,-2539.06,0.00024494,5]
[334526239,1723173110028,-2539.06,0.00024494,5]
[334526240,1723173110038,-2539.06,0.00024494,5]
[334526241,1723173110048,-1747.68,0.00024494,5]
[334526242,1723173110058,-1747.68,0.00024494,5]
[334526243,1723173110068,-1747.68,0.00024494,5]
[334526244,1723173110079,-1029.94,0.00024494,5]
[334526245,1723173110089,-1029.94,0.00024494,5]
[334526246,1723173110099,-1029.94,0.00024494,5]
[334526247,1723173110109,-959.94,0.00024494,5]
[334526248,1723173110119,-959.94,0.00024494,5]
[334526249,1723173110130,-959.94,0.00024494,5]
[334526250,1723173110142,-3315.04,0.00024494,5]
[334526251,1723173110152,-3315.04,0.00024494,5]
[334526252,1723173110163,-3315.04,0.00024494,5]
[334526253,1723173110173,-500.0,0.00024494,5]
[334526254,1723173110183,-500.0,0.00024494,5]
[334526255,1723173110194,-2760.09,0.00024494,5]
[334526256,1723173110206,-500.0,0.00024494,5]
[334526257,1723173110217,-2760.09,0.00024494,5]
[334526258,1723173110228,-2760.09,0.00024494,5]
[334526259,1723173110237,-870.98,0.00024494,5]
[334526260,1723173110247,-870.98,0.00024494,5]
[334526261,1723173110256,-870.98,0.00024494,5]
[334526262,1723173110267,-796.36,0.00024494,5]
[334526263,1723173110278,-796.36,0.00024494,5]
[334526264,1723173110290,-796.36,0.00024494,5]
[334526265,1723173110301,-2598.71,0.00024494,5]
[334526266,1723173110311,-2598.71,0.00024494,5]
[334526267,1723173110321,-4419.52,0.00024494,5]
[334526268,1723173110332,-2598.71,0.00024494,5]
[334526269,1723173110341,-4419.52,0.00024494,5]
[334526270,1723173110351,-4419.52,0.00024494,5]
[334526271,1723173110360,-500.0,0.00024494,5]
[334526272,1723173110370,-500.0,0.00024494,5]
[334526273,1723173110380,-500.0,0.00024494,5]
[334526274,1723173110390,-504.04,0.00024494,5]
[334526275,1723173110400,-504.04,0.00024494,5]
[334526276,1723173110410,-331.98049388,0.00024494,5]
[334526277,1723173110868,-172.05950612,0.00024494,5]
[334526278,1723173110878,-1623.9,0.00024494,5]
[334526279,1723173110888,-1623.9,0.00024494,5]
[334526280,1723173110898,-1623.9,0.00024494,5]
[334526281,1723173110907,-500.0,0.00024494,5]
[334526282,1723173110916,-500.0,0.00024494,5]
[334526283,1723173110926,-1742.45,0.00024494,5]
[334526284,1723173110935,-500.0,0.00024494,5]
[334526285,1723173110945,-1742.45,0.00024494,5]
[334526286,1723173110954,-1742.45,0.00024494,5]
[334526287,1723173110965,-754.59,0.00024494,5]
[334526288,1723173110974,-754.59,0.00024494,5]
[334526289,1723173110984,-754.59,0.00024494,5]
[334526290,1723173110993,-1500.41,0.00024494,5]
[334526291,1723173111002,-1500.41,0.00024494,5]
[334526292,1723173111012,-1500.41,0.00024494,5]
[334526293,1723173111021,-7078.41,0.00024494,5]
[334526294,1723173111031,-577.95,0.00024494,5]
[334526295,1723173111040,-7078.41,0.00024494,5]
[334526296,1723173111049,-577.95,0.00024494,5]
[334526297,1723173111058,-7078.41,0.00024494,5]
[334526298,1723173111067,-577.95,0.00024494,5]
[334526299,1723173111077,-756.55,0.00024494,5]
[334526300,1723173111086,-756.55,0.00024494,5]
[334526301,1723173111095,-756.55,0.00024494,5]
[334526302,1723173111231,-12292.82,0.00024494,5]
[334526303,1723173111241,-12292.82,0.00024494,5]
[334526304,1723173111250,-12292.82,0.00024494,5]
[334526305,1723173111260,-500.0,0.00024494,5]
[334526306,1723173111269,-647.07445341,0.00024494,5]
[334526307,1723173111279,-500.0,0.00024494,5]
[334526308,1723173111288,-500.0,0.00024494,5]
[334526309,1723173111297,-500.0,0.00024494,5]
[334526310,1723173111306,-500.0,0.00024494,5]
[334526311,1723173111315,-500.0,0.00024494,5]
[334526312,1723173111324,-500.0,0.00024494,5]
[334526313,1723173111334,-867.19,0.00024494,5]
[334526314,1723173111344,-912.55,0.00024494,5]
[334526315,1723173111353,-548.86,0.00024494,5]
[334526316,1723173111363,-867.19,0.00024494,5]
[334526317,1723173111373,-912.55,0.00024494,5]
[334526318,1723173111382,-548.86,0.00024494,5]
[334526319,1723173111392,-867.19,0.00024494,5]
[334526320,1723173111401,-912.55,0.00024494,5]
[334526321,1723173111411,-548.86,0.00024494,5]
[334526322,1723173111420,-3027.54,0.00024494,5]
[334526323,1723173111430,-3027.54,0.00024494,5]
[334526324,1723173111439,-3027.54,0.00024494,5]
[334526325,1723173111450,-1115.98,0.00024494,5]
[334526326,1723173111460,-1115.98,0.00024494,5]
[334526327,1723173111470,-1115.98,0.00024494,5]
[334526328,1723173111479,-1093.44,0.00024494,5]
[334526329,1723173111488,-1093.44,0.00024494,5]
[334526330,1723173111497,-1093.44,0.00024494,5]
[334526331,1723173111507,-665.69,0.00024494,5]
[334526332,1723173111517,-665.69,0.00024494,5]
[334526333,1723173111526,-665.69,0.00024494,5]
[334526334,1723173111537,-38040.15444143,0.00024494,2]
[334526335,1723173111549,-8015.83152111,0.00024494,2]
[334526336,1723173111560,-7543.16,0.00024494,2]
[334526337,1723173111572,-420.586567,0.00024494,2]
[334526338,1723173111584,-449.8766,0.00024494,2]
[334526339,1723173111596,-1304.25903189,0.00024494,2]
[334526340,1723173111608,-1254.48307782,0.00024494,2]
[334526341,1723173111620,-8999.18378655,0.00024494,2]
[334526342,1723173111630,-2000.0,0.00024494,2]
[334526343,1723173111640,-2725.36,0.00024494,5]
[334526344,1723173111650,-2725.36,0.00024494,5]
[334526345,1723173111660,-2725.36,0.00024494,5]
[334526346,1723173111670,-200.0,0.00024494,2]
[334526347,1723173111680,-539.13,0.00024494,5]
[334526348,1723173111690,-539.13,0.00024494,5]
[334526349,1723173111700,-539.13,0.00024494,5]
[334526350,1723173111711,-2207.94,0.00024494,5]
[334526351,1723173111722,-2207.94,0.00024494,5]
[334526352,1723173111731,-2207.94,0.00024494,5]
[334526353,1723173111740,-2483.96,0.00024494,5]
[334526354,1723173111750,-2483.96,0.00024494,5]
[334526355,1723173111759,-2483.96,0.00024494,5]
[334526356,1723173111769,-3472.19,0.00024494,5]
[334526357,1723173111778,-3472.19,0.00024494,5]
[334526358,1723173111787,-3472.19,0.00024494,5]
[334526359,1723173111797,-2639.38,0.00024494,5]
[334526360,1723173111807,-1834.93,0.00024494,5]
[334526361,1723173111816,-2639.38,0.00024494,5]
[334526362,1723173111826,-1834.93,0.00024494,5]
[334526363,1723173111835,-2639.38,0.00024494,5]
[334526364,1723173111845,-1834.93,0.00024494,5]
[334526365,1723173111854,-500.0,0.00024495,5]
[334526366,1723173111864,-500.0,0.00024495,5]
[334526367,1723173111874,-500.0,0.00024495,5]
[334526368,1723173111884,-496.04,0.00024495,5]
[334526369,1723173111893,-2642.87,0.00024495,5]
[334526370,1723173111903,-2642.87,0.00024495,5]
[334526371,1723173111912,-2642.87,0.00024495,5]
[334526372,1723173111922,-2642.87,0.00024495,5]
[334526373,1723173111932,-2642.87,0.00024495,5]
[334526374,1723173111942,-2642.87,0.00024495,5]
[334526375,1723173111951,-2642.87,0.00024495,5]
[334526376,1723173111965,-2642.87,0.00024495,5]
[334526377,1723173111974,-2642.87,0.00024495,5]
[334526378,1723173111984,-2643.06051621,0.00024495,5]
[334526379,1723173111994,-530.96,0.00024495,5]
[334526380,1723173112003,-530.96,0.00024495,5]
[334526381,1723173112013,-530.96,0.00024495,5]
[334526382,1723173112023,-530.96,0.00024495,5]
[334526383,1723173112033,-530.96,0.00024495,5]
[334526384,1723173112053,-530.96,0.00024495,5]
[334526385,1723173112068,-530.96,0.00024495,5]
[334526386,1723173112087,-530.96,0.00024495,5]
[334526387,1723173112106,-530.96,0.00024495,5]
[334526388,1723173112124,-531.14733223,0.00024495,5]
[334526389,1723173112143,-2144.25,0.00024495,5]
[334526390,1723173112161,-2144.25,0.00024495,5]
[334526391,1723173112174,-2144.25,0.00024495,5]
[334526392,1723173112191,-2144.25,0.00024495,5]
[334526393,1723173112212,-2144.25,0.00024495,5]
[334526394,1723173112228,-2144.25,0.00024495,5]
[334526395,1723173112241,-2144.25,0.00024495,5]
[334526396,1723173112260,-2144.25,0.00024495,5]
[334526398,1723173112274,-2144.25,0.00024495,5]
[334526399,1723173112291,-2144.45220034,0.00024495,5]
[334526400,1723173112305,-5942.0,0.00024495,5]
[334526401,1723173112321,-151.0,0.00024495,7]
[334526402,1723173112337,-151.0,0.00024495,7]
[334526403,1723173112353,-151.0,0.00024495,7]
[334526404,1723173112368,-150.0,0.00024496,2]
[334526405,1723173112384,-3846.03189167,0.00024496,2]
[334526406,1723173112400,-150.0,0.00024497,2]
[334526407,1723173112415,-150.0,0.00024497,2]
[334526408,1723173112430,-183.316119,0.00024497,5]